Workbook

Sheet Factor Data (hidden)
A1: Entry Count | B1: 3
A2: Next Available ID | B2: 4
A4: ID | B4: 1
A5: IsActive | B5: TRUE
A6: NodeID | B6: 1 | C6: 2 | D6: 3 | E6: 4 | F6: 5 | G6: 6 | H6: 7 | I6: 8
A7: ArcID | B7: 1 | C7: 2 | D7: 3 | E7: 4 | F7: 5 | G7: 6 | H7: 7 | I7: 8
A8: fNodeCopyID
A9: RootNodeID | B9: 1
A10: FactorName | B10: Endarterectomy
A11: IsHidden | B11: FALSE
A13: ID | B13: 2
A14: IsActive | B14: TRUE
A15: NodeID | B15: 9 | C15: 10 | D15: 11 | E15: 12 | F15: 13 | G15: 14
A16: ArcID | B16: 9 | C16: 10 | D16: 11 | E16: 12 | F16: 13 | G16: 14 | H16: 15 | I16: 16 | J16: 17 | K16: 18 | L16: 19
A17: fNodeCopyID | B17: 1 | C17: 2
A18: RootNodeID | B18: 9
A19: FactorName | B19: LT_Outome
A20: IsHidden | B20: FALSE
A22: ID | B22: 3
A23: IsActive | B23: TRUE
A24: NodeID | B24: 15
A25: ArcID | B25: 20
A26: fNodeCopyID
A27: RootNodeID | B27: 15
A28: FactorName | B28: Background
A29: IsHidden | B29: FALSE

Sheet Node Data (hidden)
A1: Entry Count | B1: 15
A2: Next Available ID | B2: 16
A4: ID | B4: 1
A5: nParentFactorID | B5: 1
A6: NodeCopyID
A7: PredecessorArcID
A8: SuccessorArcID | B8: 7 | C8: 8
A9: QualityFactor | B9: 1
A10: CostFactor | B10: 0
A11: IsKeyNode | B11: FALSE
A12: NodeName
A13: Rounded | B13: FALSE
A14: nTriggerID
A16: ID | B16: 2
A17: nParentFactorID | B17: 1
A18: NodeCopyID
A19: PredecessorArcID | B19: 7
A20: SuccessorArcID | B20: 3 | C20: 4
A21: QualityFactor | B21: 1
A22: CostFactor | B22: 0
A23: IsKeyNode | B23: FALSE
A24: NodeName | B24: Surgery
A25: Rounded | B25: TRUE
A26: nTriggerID
A28: ID | B28: 3
A29: nParentFactorID | B29: 1
A30: NodeCopyID
A31: PredecessorArcID | B31: 4
A32: SuccessorArcID | B32: 1 | C32: 2
A33: QualityFactor | B33: 1
A34: CostFactor | B34: 0
A35: IsKeyNode | B35: FALSE
A36: NodeName | B36: Survive
A37: Rounded | B37: TRUE
A38: nTriggerID
A40: ID | B40: 4
A41: nParentFactorID | B41: 1
A42: NodeCopyID
A43: PredecessorArcID | B43: 1
A44: SuccessorArcID
A45: QualityFactor | B45: 1
A46: CostFactor | B46: 0
A47: IsKeyNode | B47: FALSE
A48: NodeName | B48: Post-Surgery Stroke
A49: Rounded | B49: TRUE
A50: nTriggerID
A52: ID | B52: 5
A53: nParentFactorID | B53: 1
A54: NodeCopyID
A55: PredecessorArcID | B55: 2
A56: SuccessorArcID
A57: QualityFactor | B57: 1
A58: CostFactor | B58: 0
A59: IsKeyNode | B59: FALSE
A60: NodeName | B60: Post-Surgery Well
A61: Rounded | B61: TRUE
A62: nTriggerID
A64: ID | B64: 6
A65: nParentFactorID | B65: 1
A66: NodeCopyID
A67: PredecessorArcID | B67: 8
A68: SuccessorArcID | B68: 5 | C68: 6
A69: QualityFactor | B69: 1
A70: CostFactor | B70: 0
A71: IsKeyNode | B71: FALSE
A72: NodeName | B72: No Surgery
A73: Rounded | B73: TRUE
A74: nTriggerID
A76: ID | B76: 7
A77: nParentFactorID | B77: 1
A78: NodeCopyID
A79: PredecessorArcID | B79: 5
A80: SuccessorArcID
A81: QualityFactor | B81: 1
A82: CostFactor | B82: 0
A83: IsKeyNode | B83: FALSE
A84: NodeName | B84: Stroke
A85: Rounded | B85: TRUE
A86: nTriggerID
A88: ID | B88: 8
A89: nParentFactorID | B89: 1
A90: NodeCopyID
A91: PredecessorArcID | B91: 6
A92: SuccessorArcID
A93: QualityFactor | B93: 1
A94: CostFactor | B94: 0
A95: IsKeyNode | B95: FALSE
A96: NodeName | B96: Well
A97: Rounded | B97: TRUE
A98: nTriggerID
A100: ID | B100: 9
A101: nParentFactorID | B101: 2
A102: NodeCopyID
A103: PredecessorArcID
A104: SuccessorArcID | B104: 18 | C104: 19
A105: QualityFactor | B105: 1
A106: CostFactor | B106: 0
A107: IsKeyNode | B107: FALSE
A108: NodeName | B108: Well
A109: Rounded | B109: TRUE
A110: nTriggerID
A112: ID | B112: 10
A113: nParentFactorID | B113: 2
A114: NodeCopyID | B114: 2
A115: PredecessorArcID | B115: 19
A116: SuccessorArcID | B116: 16 | C116: 17
A117: QualityFactor | B117: 1
A118: CostFactor | B118: 0
A119: IsKeyNode | B119: FALSE
A120: NodeName | B120: Stroke
A121: Rounded | B121: TRUE
A122: nTriggerID
A124: ID | B124: 11
A125: nParentFactorID | B125: 2
A126: NodeCopyID | B126: 1
A127: PredecessorArcID | B127: 16
A128: SuccessorArcID | B128: 11 | C128: 12
A129: QualityFactor | B129: 1
A130: CostFactor | B130: 0
A131: IsKeyNode | B131: FALSE
A132: NodeName | B132: Big Stroke
A133: Rounded | B133: TRUE
A134: nTriggerID
A136: ID | B136: 12
A137: nParentFactorID | B137: 2
A138: NodeCopyID
A139: PredecessorArcID | B139: 11
A140: SuccessorArcID | B140: 9 | C140: 10
A141: QualityFactor | B141: 1
A142: CostFactor | B142: 0
A143: IsKeyNode | B143: FALSE
A144: NodeName | B144: Post Big Stroke
A145: Rounded | B145: TRUE
A146: nTriggerID
A148: ID | B148: 13
A149: nParentFactorID | B149: 2
A150: NodeCopyID
A151: PredecessorArcID | B151: 17
A152: SuccessorArcID | B152: 15
A153: QualityFactor | B153: 1
A154: CostFactor | B154: 0
A155: IsKeyNode | B155: FALSE
A156: NodeName | B156: Small Stroke
A157: Rounded | B157: TRUE
A158: nTriggerID
A160: ID | B160: 14
A161: nParentFactorID | B161: 2
A162: NodeCopyID
A163: PredecessorArcID | B163: 15
A164: SuccessorArcID | B164: 13 | C164: 14
A165: QualityFactor | B165: 1
A166: CostFactor | B166: 0
A167: IsKeyNode | B167: FALSE
A168: NodeName | B168: Post Small Stroke
A169: Rounded | B169: TRUE
A170: nTriggerID
A172: ID | B172: 15
A173: nParentFactorID | B173: 3
A174: NodeCopyID
A175: PredecessorArcID
A176: SuccessorArcID | B176: 20
A177: QualityFactor | B177: 1
A178: CostFactor | B178: 0
A179: IsKeyNode | B179: FALSE
A180: NodeName | B180: Alive
A181: Rounded | B181: TRUE
A182: nTriggerID

Sheet Arc Data (hidden)
A1: Entry Count | B1: 20
A2: Next Available ID | B2: 21
A4: ID | B4: 1
A5: aParentFactorID | B5: 1
A6: Stochastic | B6: FALSE
A7: Orientation | B7: 3.141592741
A8: PredecessorNodeID | B8: 3
A9: SuccessorNodeID | B9: 4
A10: SuccessorNodeCopyID | B10: 0
A11: TriggerID | B11: 1
A12: RateProb | B12: Popstroke
A13: QualityToll | B13: 0
A14: CostToll | B14: 0
A16: ID | B16: 2
A17: aParentFactorID | B17: 1
A18: Stochastic | B18: FALSE
A19: Orientation | B19: 3.141592741
A20: PredecessorNodeID | B20: 3
A21: SuccessorNodeID | B21: 5
A22: SuccessorNodeCopyID | B22: 0
A23: TriggerID
A24: RateProb | B24: 1-Popstroke
A25: QualityToll | B25: 0
A26: CostToll | B26: 0
A28: ID | B28: 3
A29: aParentFactorID | B29: 1
A30: Stochastic | B30: FALSE
A31: Orientation | B31: 3.141592741
A32: PredecessorNodeID | B32: 2
A33: SuccessorNodeID | B33: 0
A34: SuccessorNodeCopyID | B34: 0
A35: TriggerID
A36: RateProb | B36: Popdie
A37: QualityToll | B37: 0
A38: CostToll | B38: 0
A40: ID | B40: 4
A41: aParentFactorID | B41: 1
A42: Stochastic | B42: FALSE
A43: Orientation | B43: 3.141592741
A44: PredecessorNodeID | B44: 2
A45: SuccessorNodeID | B45: 3
A46: SuccessorNodeCopyID | B46: 0
A47: TriggerID
A48: RateProb | B48: 1-Popdie
A49: QualityToll | B49: 0
A50: CostToll | B50: 0
A52: ID | B52: 5
A53: aParentFactorID | B53: 1
A54: Stochastic | B54: FALSE
A55: Orientation | B55: 3.141592741
A56: PredecessorNodeID | B56: 6
A57: SuccessorNodeID | B57: 7
A58: SuccessorNodeCopyID | B58: 0
A59: TriggerID | B59: 2
A60: RateProb | B60: Pearlystrk
A61: QualityToll | B61: 0
A62: CostToll | B62: 0
A64: ID | B64: 6
A65: aParentFactorID | B65: 1
A66: Stochastic | B66: FALSE
A67: Orientation | B67: 3.141592741
A68: PredecessorNodeID | B68: 6
A69: SuccessorNodeID | B69: 8
A70: SuccessorNodeCopyID | B70: 0
A71: TriggerID
A72: RateProb | B72: 1-Pearlystrk
A73: QualityToll | B73: 0
A74: CostToll | B74: 0
A76: ID | B76: 7
A77: aParentFactorID | B77: 1
A78: Stochastic | B78: FALSE
A79: Orientation | B79: 3.141592741
A80: PredecessorNodeID | B80: 1
A81: SuccessorNodeID | B81: 2
A82: SuccessorNodeCopyID | B82: 0
A83: TriggerID
A84: RateProb | B84: dSurg
A85: QualityToll | B85: tSurg
A86: CostToll | B86: cSurg
A88: ID | B88: 8
A89: aParentFactorID | B89: 1
A90: Stochastic | B90: FALSE
A91: Orientation | B91: 3.141592741
A92: PredecessorNodeID | B92: 1
A93: SuccessorNodeID | B93: 6
A94: SuccessorNodeCopyID | B94: 0
A95: TriggerID
A96: RateProb | B96: 1-dSurg
A97: QualityToll | B97: 0
A98: CostToll | B98: 0
A100: ID | B100: 9
A101: aParentFactorID | B101: 2
A102: Stochastic | B102: TRUE
A103: Orientation | B103: 3.141592741
A104: PredecessorNodeID | B104: 12
A105: SuccessorNodeID | B105: 0
A106: SuccessorNodeCopyID | B106: 0
A107: TriggerID
A108: RateProb | B108: mexcess
A109: QualityToll | B109: 0
A110: CostToll | B110: 0
A112: ID | B112: 10
A113: aParentFactorID | B113: 2
A114: Stochastic | B114: TRUE
A115: Orientation | B115: 3.141592741
A116: PredecessorNodeID | B116: 12
A117: SuccessorNodeID | B117: 11
A118: SuccessorNodeCopyID | B118: 1
A119: TriggerID
A120: RateProb | B120: ID 2
A121: QualityToll | B121: tBig
A122: CostToll | B122: 0
A124: ID | B124: 11
A125: aParentFactorID | B125: 2
A126: Stochastic | B126: FALSE
A127: Orientation | B127: 3.141592741
A128: PredecessorNodeID | B128: 11
A129: SuccessorNodeID | B129: 12
A130: SuccessorNodeCopyID | B130: 0
A131: TriggerID
A132: RateProb | B132: 1-Pearlydie
A133: QualityToll | B133: 0
A134: CostToll | B134: 0
A136: ID | B136: 12
A137: aParentFactorID | B137: 2
A138: Stochastic | B138: FALSE
A139: Orientation | B139: 3.141592741
A140: PredecessorNodeID | B140: 11
A141: SuccessorNodeID | B141: 0
A142: SuccessorNodeCopyID | B142: 0
A143: TriggerID
A144: RateProb | B144: Pearlydie
A145: QualityToll | B145: 0
A146: CostToll | B146: 0
A148: ID | B148: 13
A149: aParentFactorID | B149: 2
A150: Stochastic | B150: TRUE
A151: Orientation | B151: 3.141592741
A152: PredecessorNodeID | B152: 14
A153: SuccessorNodeID | B153: 0
A154: SuccessorNodeCopyID | B154: 0
A155: TriggerID
A156: RateProb | B156: mexcess
A157: QualityToll | B157: 0
A158: CostToll | B158: 0
A160: ID | B160: 14
A161: aParentFactorID | B161: 2
A162: Stochastic | B162: TRUE
A163: Orientation | B163: 3.141592741
A164: PredecessorNodeID | B164: 14
A165: SuccessorNodeID | B165: 10
A166: SuccessorNodeCopyID | B166: 2
A167: TriggerID
A168: RateProb | B168: ID 1
A169: QualityToll | B169: 0
A170: CostToll | B170: 0
A172: ID | B172: 15
A173: aParentFactorID | B173: 2
A174: Stochastic | B174: FALSE
A175: Orientation | B175: 3.141592741
A176: PredecessorNodeID | B176: 13
A177: SuccessorNodeID | B177: 14
A178: SuccessorNodeCopyID | B178: 0
A179: TriggerID
A180: RateProb | B180: 1
A181: QualityToll | B181: 0
A182: CostToll | B182: 0
A184: ID | B184: 16
A185: aParentFactorID | B185: 2
A186: Stochastic | B186: FALSE
A187: Orientation | B187: 3.141592741
A188: PredecessorNodeID | B188: 10
A189: SuccessorNodeID | B189: 11
A190: SuccessorNodeCopyID | B190: 0
A191: TriggerID
A192: RateProb | B192: Pbig
A193: QualityToll | B193: tBig
A194: CostToll | B194: cBigStrk
A196: ID | B196: 17
A197: aParentFactorID | B197: 2
A198: Stochastic | B198: FALSE
A199: Orientation | B199: 3.141592741
A200: PredecessorNodeID | B200: 10
A201: SuccessorNodeID | B201: 13
A202: SuccessorNodeCopyID | B202: 0
A203: TriggerID
A204: RateProb | B204: 1-Pbig
A205: QualityToll | B205: 0
A206: CostToll | B206: cSmallStrk
A208: ID | B208: 18
A209: aParentFactorID | B209: 2
A210: Stochastic | B210: TRUE
A211: Orientation | B211: 3.141592741
A212: PredecessorNodeID | B212: 9
A213: SuccessorNodeID | B213: 0
A214: SuccessorNodeCopyID | B214: 0
A215: TriggerID
A216: RateProb | B216: mexcess
A217: QualityToll | B217: 0
A218: CostToll | B218: 0
... 22 more rows

Sheet NodeCopy Data (hidden)
A1: Entry Count | B1: 2
A2: Next Available ID | B2: 3
A4: ID | B4: 1
A5: ncParentFactorID | B5: 2
A6: NodeOriginalID | B6: 11
A7: cPredecessorArcID | B7: 10
A9: ID | B9: 2
A10: ncParentFactorID | B10: 2
A11: NodeOriginalID | B11: 10
A12: cPredecessorArcID | B12: 14

Sheet Dependency Data (hidden)
A1: Entry Count | B1: 2
A2: Next Available ID | B2: 3
A4: ID | B4: 1
A5: IfFactorID | B5: 1
A6: StateID | B6: 4 | C6: 5 | D6: 7 | E6: 8
A7: ThenD | B7: Eff*mstroke | C7: Eff*mstroke | D7: mstroke | E7: mstroke
A9: ID | B9: 2
A10: IfFactorID | B10: 1
A11: StateID | B11: 4 | C11: 5 | D11: 7 | E11: 8
A12: ThenD | B12: Eff*mstroke*Pbig | C12: Eff*mstroke*Pbig | D12: mstroke*Pbig | E12: mstroke*Pbig

Sheet Trigger Data (hidden)
A1: Entry Count | B1: 2
A2: Next Available ID | B2: 3
A4: ID | B4: 1
A5: FactorTriggeredID | B5: 2
A6: OriginNodeID | B6: (any node)
A7: DestinationNodeID | B7: 10
A9: ID | B9: 2
A10: FactorTriggeredID | B10: 2
A11: OriginNodeID | B11: (any node)
A12: DestinationNodeID | B12: 10

Sheet _Lookup (hidden)
A1: Next Available Dive Index | B1: 20
A2: Begin Table | B2: 5
A3: End Table | B3: 25
A5: Lexicographic Node Index | B5: Dive Index
A6: 1 | B6: 1
A7: 20 | B7: 17
A8: 21 | B8: 19
A9: 22 | B9: 18
A10: 24 | B10: 16
A11: 25 | B11: 11
A12: 26 | B12: 12
A13: 27 | B13: 15
A14: 28 | B14: 14
A15: 30 | B15: 13
A16: 38 | B16: 8
A17: 39 | B17: 10
A18: 40 | B18: 9
A19: 42 | B19: 7
A20: 43 | B20: 2
A21: 44 | B21: 3
A22: 45 | B22: 6
A23: 46 | B23: 5
A24: 48 | B24: 4

Sheet _Cohort
A2: Cycle Time = | B2: 0.1
A3: Start Time = | B3: 0
A4: Time Horizon = | B4: 20
A5: Discount Rate = | B5: =_DiscountRate -> 0
D6: Endarterectomy: | E6: (no name) | F6: Post-Surgery Stroke | G6: Post-Surgery Stroke | H6: Post-Surgery Well | I6: Post-Surgery Well | J6: Post-Surgery Well | K6: Stroke | L6: Stroke | M6: Well | N6: Well | O6: Well | P6: Terminal Node
D7: LT_Outome: | E7: Well | F7: Post Big Stroke | G7: Post Small Stroke | H7: Well | I7: Post Big Stroke | J7: Post Small Stroke | K7: Post Big Stroke | L7: Post Small Stroke | M7: Well | N7: Post Big Stroke | O7: Post Small Stroke
D8: Background: | E8: Alive | F8: Alive | G8: Alive | H8: Alive | I8: Alive | J8: Alive | K8: Alive | L8: Alive | M8: Alive | N8: Alive | O8: Alive
D9: Chance/Decision? | E9: 1 | F9: 0 | G9: 0 | H9: 0 | I9: 0 | J9: 0 | K9: 0 | L9: 0 | M9: 0 | N9: 0 | O9: 0
D11: Initial Cohort = | E11: 1
D13: Time | E13: Counts
D14: =IF(_R,_tI,IF(_t>_tF,_tNw,D29)) -> 0.5 | E14: =IF(_R,E11,IF(_tNw>=_tF,E14,E29)) -> 0 | F14: 0.03006903961 | G14: 0.02402294 | H14: 0.8149964723 | I14: 0.008590543116 | J14: 0.006901792411 | K14: 0 | L14: 0 | M14: 0 | N14: 0 | O14: 0 | P14: 0.1154192126 | Q14: =(SUMPRODUCT(E9:Q9,E14:Q14) > 0) -> FALSE
C15: Transition Counts: | D15: (no name) / Well / Alive
D16: Post-Surgery Stroke / Post Big Stroke / Alive | E16: =dSurg*(1-Popdie)*Popstroke*Pbig*(1-Pearlydie) -> 0.03108266667 | F16: =[1]!xPr(EFF*mstroke*Pbig*_dT)*(1-Pearlydie) -> 0.0010324727 | G16: =[1]!xPr(EFF*mstroke*_dT)*Pbig*(1-Pearlydie) -> 0.001032042742
D17: Post-Surgery Stroke / Post Small Stroke / Alive | E17: =dSurg*(1-Popdie)*Popstroke*(1-Pbig) -> 0.02506666667 | G17: =[1]!xPr(EFF*mstroke*_dT)*(1-Pbig) -> 0.0008322925342
D18: Post-Surgery Well / Well / Alive | E18: =dSurg*(1-Popdie)*(1-Popstroke) -> 0.8648
D19: Post-Surgery Well / Post Big Stroke / Alive | H19: =[1]!xPr(mstroke*_dT)*Pbig*(1-Pearlydie) -> 0.0020615086 | I19: =[1]!xPr(EFF*mstroke*Pbig*_dT)*(1-Pearlydie) -> 0.0010324727 | J19: =[1]!xPr(EFF*mstroke*_dT)*Pbig*(1-Pearlydie) -> 0.001032042742
D20: Post-Surgery Well / Post Small Stroke / Alive | H20: =[1]!xPr(mstroke*_dT)*(1-Pbig) -> 0.001662506936 | J20: =[1]!xPr(EFF*mstroke*_dT)*(1-Pbig) -> 0.0008322925342
D21: Stroke / Post Big Stroke / Alive | E21: =(1-dSurg)*Pearlystrk*Pbig*(1-Pearlydie) -> 0 | K21: =[1]!xPr(mstroke*Pbig*_dT)*(1-Pearlydie) -> 0.002063226046 | L21: =[1]!xPr(mstroke*_dT)*Pbig*(1-Pearlydie) -> 0.0020615086
D22: Stroke / Post Small Stroke / Alive | E22: =(1-dSurg)*Pearlystrk*(1-Pbig) -> 0 | L22: =[1]!xPr(mstroke*_dT)*(1-Pbig) -> 0.001662506936
D23: Well / Well / Alive | E23: =(1-dSurg)*(1-Pearlystrk) -> 0
D24: Well / Post Big Stroke / Alive | M24: =[1]!xPr(mstroke*_dT)*Pbig*(1-Pearlydie) -> 0.0020615086 | N24: =[1]!xPr(mstroke*Pbig*_dT)*(1-Pearlydie) -> 0.002063226046 | O24: =[1]!xPr(mstroke*_dT)*Pbig*(1-Pearlydie) -> 0.0020615086
D25: Well / Post Small Stroke / Alive | M25: =[1]!xPr(mstroke*_dT)*(1-Pbig) -> 0.001662506936 | O25: =[1]!xPr(mstroke*_dT)*(1-Pbig) -> 0.001662506936
D26: Terminal Node | E26: =dSurg*Popdie+dSurg*(1-Popdie)*Popstroke*Pbig*Pearlydie+(1-dSurg)*Pearlystrk*Pbig*Pearlydie -> 0.07905066667 | F26: =[1]!xPr((mexcess+[1]!rMortUS(Age+_t,Gender))*_dT)+[1]!xPr(EFF*mstroke*Pbig*_dT)*Pearlydie -> 0.007438094618 | G26: =[1]!xPr((mexcess+[1]!rMortUS(Age+_t,Gender))*_dT)+[1]!xPr(EFF*mstroke*_dT)*Pbig*Pearlydie -> 0.007437831095 | H26: =[1]!xPr((mexcess+[1]!rMortUS(Age+_t,Gender))*_dT)+[1]!xPr(mstroke*_dT)*Pbig*Pearlydie -> 0.00806879404 | I26: =[1]!xPr((mexcess+[1]!rMortUS(Age+_t,Gender))*_dT)+[1]!xPr(EFF*mstroke*Pbig*_dT)*Pearlydie -> 0.007438094618 | J26: =[1]!xPr((mexcess+[1]!rMortUS(Age+_t,Gender))*_dT)+[1]!xPr(EFF*mstroke*_dT)*Pbig*Pearlydie -> 0.007437831095 | K26: =[1]!xPr((mexcess+[1]!rMortUS(Age+_t,Gender))*_dT)+[1]!xPr(mstroke*Pbig*_dT)*Pearlydie -> 0.008069846669 | L26: =[1]!xPr((mexcess+[1]!rMortUS(Age+_t,Gender))*_dT)+[1]!xPr(mstroke*_dT)*Pbig*Pearlydie -> 0.00806879404 | M26: =[1]!xPr((mexcess+[1]!rMortUS(Age+_t,Gender))*_dT)+[1]!xPr(mstroke*_dT)*Pbig*Pearlydie -> 0.00806879404 | N26: =[1]!xPr((mexcess+[1]!rMortUS(Age+_t,Gender))*_dT)+[1]!xPr(mstroke*Pbig*_dT)*Pearlydie -> 0.008069846669 | O26: =[1]!xPr((mexcess+[1]!rMortUS(Age+_t,Gender))*_dT)+[1]!xPr(mstroke*_dT)*Pbig*Pearlydie -> 0.00806879404
D27: Entering Counts | E27: =SUMPRODUCT(_tR,E15:P15) -> 0 | F27: =SUMPRODUCT(_tR,E16:P16) -> 5.58381634e-05 | G27: =SUMPRODUCT(_tR,E17:P17) -> 1.999411361e-05 | H27: =SUMPRODUCT(_tR,E18:P18) -> 0 | I27: =SUMPRODUCT(_tR,E19:P19) -> 0.001696114683 | J27: =SUMPRODUCT(_tR,E20:P20) -> 0.001360681598 | K27: =SUMPRODUCT(_tR,E21:P21) -> 0 | L27: =SUMPRODUCT(_tR,E22:P22) -> 0 | M27: =SUMPRODUCT(_tR,E23:P23) -> 0 | N27: =SUMPRODUCT(_tR,E24:P24) -> 0 | O27: =SUMPRODUCT(_tR,E25:P25) -> 0 | P27: =SUMPRODUCT(_tR,E26:P26) -> 0.007093605249
D28: Departing Counts | E28: =IF(_CD=1,E14,E14*SUM(E15:E26)) -> 0 | F28: 0.0002547018242 | G28: 0.0002234653846 | H28: 0.009611098203 | I28: 7.276677376e-05 | J28: 6.420162127e-05 | K28: 0 | L28: 0 | M28: 0 | N28: 0 | O28: 0 | P28: 0
D29: =IF(_CP,D14,D14+_dT) -> 0.6 | E29: =E14+E27-E28 -> 0 | F29: 0.02987017595 | G29: 0.02381946873 | H29: 0.8053853741 | I29: 0.01021389102 | J29: 0.008198272388 | K29: 0 | L29: 0 | M29: 0 | N29: 0 | O29: 0 | P29: 0.1225128178
D31: Quality Coefficients (at t): | F31: =1 -> 1 | G31: =1 -> 1 | H31: =1 -> 1 | I31: =1 -> 1 | J31: =1 -> 1 | K31: =1 -> 1 | L31: =1 -> 1 | M31: =1 -> 1 | N31: =1 -> 1 | O31: =1 -> 1
D32: (at t+dt): | F32: =EXP(-_dR*_dT) -> 1 | G32: 1 | H32: 1 | I32: 1 | J32: 1 | K32: 1 | L32: 1 | M32: 1 | N32: 1 | O32: 1
C34: Transition QALY Tolls: | D34: Post-Surgery Stroke / Post Big Stroke / Alive | E34: =dSurg*(1-Popdie)*Popstroke*Pbig*(1-Pearlydie)*(tSurg+tBig) -> 0.005180444444
D35: Post-Surgery Stroke / Post Small Stroke / Alive | E35: =dSurg*(1-Popdie)*Popstroke*(1-Pbig)*tSurg -> 0.002088888889
D36: Post-Surgery Well / Well / Alive | E36: =dSurg*(1-Popdie)*(1-Popstroke)*tSurg -> 0.07206666667
D37: Stroke / Post Big Stroke / Alive | E37: =(1-dSurg)*Pearlystrk*Pbig*(1-Pearlydie)*tBig -> 0
D38: Stroke / Post Small Stroke / Alive | E38: =0 -> 0
D39: Well / Well / Alive | E39: =0 -> 0
D40: Post-Surgery Stroke / Big Stroke / Alive | F40: =[1]!xPr(EFF*mstroke*Pbig*_dT)*tBig -> 0.0001387732124
D41: Post-Surgery Stroke / Stroke / Alive | G41: =[1]!xPr(EFF*mstroke*_dT)*(Pbig*(1-Pearlydie)*tBig+Pbig*Pearlydie*tBig) -> 0.0001387154224
D42: Post-Surgery Well / Stroke / Alive | H42: =[1]!xPr(mstroke*_dT)*(Pbig*(1-Pearlydie)*tBig+Pbig*Pearlydie*tBig) -> 0.0002770844893 | J42: =[1]!xPr(EFF*mstroke*_dT)*(Pbig*(1-Pearlydie)*tBig+Pbig*Pearlydie*tBig) -> 0.0001387154224
D43: Post-Surgery Well / Big Stroke / Alive | I43: =[1]!xPr(EFF*mstroke*Pbig*_dT)*tBig -> 0.0001387732124
D44: Stroke / Big Stroke / Alive | K44: =[1]!xPr(mstroke*Pbig*_dT)*tBig -> 0.0002773153288
D45: Stroke / Stroke / Alive | L45: =[1]!xPr(mstroke*_dT)*(Pbig*(1-Pearlydie)*tBig+Pbig*Pearlydie*tBig) -> 0.0002770844893
D46: Well / Stroke / Alive | M46: =[1]!xPr(mstroke*_dT)*(Pbig*(1-Pearlydie)*tBig+Pbig*Pearlydie*tBig) -> 0.0002770844893 | O46: =[1]!xPr(mstroke*_dT)*(Pbig*(1-Pearlydie)*tBig+Pbig*Pearlydie*tBig) -> 0.0002770844893
D47: Well / Big Stroke / Alive | N47: =[1]!xPr(mstroke*Pbig*_dT)*tBig -> 0.0002773153288
D48: Terminal Node | E48: =dSurg*Popdie*tSurg+dSurg*(1-Popdie)*Popstroke*Pbig*Pearlydie*(tSurg+tBig)+(1-dSurg)*Pearlystrk*Pbig*Pearlydie*tBig -> 0.008175111111 | F48: =0 -> 0 | G48: =0 -> 0 | H48: =0 -> 0 | I48: =0 -> 0 | J48: =0 -> 0 | K48: =0 -> 0 | L48: =0 -> 0 | M48: =0 -> 0 | N48: =0 -> 0 | O48: =0 -> 0
D49: Incremental QALY Tolls: | E49: =IF(_t>_tF,0,_tR*SUM(E34:E48)) -> 0 | F49: 4.172777221e-06 | G49: 3.332352268e-06 | H49: 0.0002258228813 | I49: 1.192137265e-06 | J49: 9.573850493e-07 | K49: 0 | L49: 0 | M49: 0 | N49: 0 | O49: 0
D50: Incremental QALYs: | E50: =IF(_t>_tF,0,IF(_CP,0,_dT/2*(E31*E14+E32*E29))) -> 0 | F50: 0.002996960778 | G50: 0.002392120436 | H50: 0.08101909232 | I50: 0.000940221707 | J50: 0.0007550032399 | K50: 0 | L50: 0 | M50: 0 | N50: 0 | O50: 0
D51: Incremental Total: | E51: =E50-E49 -> 0 | F51: 0.002992788001 | G51: 0.002388788084 | H51: 0.08079326944 | I51: 0.0009390295698 | J51: 0.0007540458549 | K51: 0 | L51: 0 | M51: 0 | N51: 0 | O51: 0
D52: Cum Discounted QALYs: | E52: =IF(_R,E51,IF(_t>=_tF,E52,E52+E51*EXP(-_dR*_t))) -> -0.08751111111 | F52: 0.01825813414 | G52: 0.01464232059 | H52: 0.4994540455 | I52: 0.003116349947 | J52: 0.002506007558 | K52: 0 | L52: 0 | M52: 0 | N52: 0 | O52: 0
D53: Overall Cum QALYs = | E53: =SUM(E52:O52) -> 0.4504657467
D55: Cost Coefficients (at t): | F55: =0 -> 0 | G55: =0 -> 0 | H55: =0 -> 0 | I55: =0 -> 0 | J55: =0 -> 0 | K55: =0 -> 0 | L55: =0 -> 0 | M55: =0 -> 0 | N55: =0 -> 0 | O55: =0 -> 0
D56: (at t+dt): | F56: =0 -> 0 | G56: =0 -> 0 | H56: =0 -> 0 | I56: =0 -> 0 | J56: =0 -> 0 | K56: =0 -> 0 | L56: =0 -> 0 | M56: =0 -> 0 | N56: =0 -> 0 | O56: =0 -> 0
C58: Transition Cost Tolls: | D58: Post-Surgery Stroke / Post Big Stroke / Alive | E58: =dSurg*(1-Popdie)*Popstroke*Pbig*(1-Pearlydie)*(cSurg+cBigStrk) -> 1.087893333
D59: Post-Surgery Stroke / Post Small Stroke / Alive | E59: =dSurg*(1-Popdie)*Popstroke*(1-Pbig)*(cSurg+cSmallStrk) -> 0.5013333333
D60: Post-Surgery Well / Well / Alive | E60: =dSurg*(1-Popdie)*(1-Popstroke)*cSurg -> 12.972
D61: Stroke / Post Big Stroke / Alive | E61: =(1-dSurg)*Pearlystrk*Pbig*(1-Pearlydie)*cBigStrk -> 0
D62: Stroke / Post Small Stroke / Alive | E62: =(1-dSurg)*Pearlystrk*(1-Pbig)*cSmallStrk -> 0
D63: Well / Well / Alive | E63: =0 -> 0
D64: Post-Surgery Stroke / Big Stroke / Alive | F64: =0 -> 0
D65: Post-Surgery Stroke / Stroke / Alive | G65: =[1]!xPr(EFF*mstroke*_dT)*(Pbig*(1-Pearlydie)*cBigStrk+Pbig*Pearlydie*cBigStrk+(1-Pbig)*cSmallStrk) -> 0.03745316404
D66: Post-Surgery Well / Stroke / Alive | H66: =[1]!xPr(mstroke*_dT)*(Pbig*(1-Pearlydie)*cBigStrk+Pbig*Pearlydie*cBigStrk+(1-Pbig)*cSmallStrk) -> 0.07481281211 | J66: =[1]!xPr(EFF*mstroke*_dT)*(Pbig*(1-Pearlydie)*cBigStrk+Pbig*Pearlydie*cBigStrk+(1-Pbig)*cSmallStrk) -> 0.03745316404
D67: Post-Surgery Well / Big Stroke / Alive | I67: =0 -> 0
D68: Stroke / Big Stroke / Alive | K68: =0 -> 0
D69: Stroke / Stroke / Alive | L69: =[1]!xPr(mstroke*_dT)*(Pbig*(1-Pearlydie)*cBigStrk+Pbig*Pearlydie*cBigStrk+(1-Pbig)*cSmallStrk) -> 0.07481281211
D70: Well / Stroke / Alive | M70: =[1]!xPr(mstroke*_dT)*(Pbig*(1-Pearlydie)*cBigStrk+Pbig*Pearlydie*cBigStrk+(1-Pbig)*cSmallStrk) -> 0.07481281211 | O70: =[1]!xPr(mstroke*_dT)*(Pbig*(1-Pearlydie)*cBigStrk+Pbig*Pearlydie*cBigStrk+(1-Pbig)*cSmallStrk) -> 0.07481281211
D71: Well / Big Stroke / Alive | N71: =0 -> 0
D72: Terminal Node | E72: =dSurg*Popdie*cSurg+dSurg*(1-Popdie)*Popstroke*Pbig*Pearlydie*(cSurg+cBigStrk)+(1-dSurg)*Pearlystrk*Pbig*Pearlydie*cBigStrk -> 1.566773333 | F72: =0 -> 0 | G72: =0 -> 0 | H72: =0 -> 0 | I72: =0 -> 0 | J72: =0 -> 0 | K72: =0 -> 0 | L72: =0 -> 0 | M72: =0 -> 0 | N72: =0 -> 0 | O72: =0 -> 0
D73: Incremental Cost Tolls: | E73: =IF(_t>_tF,0,_tR*SUM(E58:E72)) -> 0 | F73: 0 | G73: 0.0008997351124 | H73: 0.06097217795 | I73: 0 | J73: 0.0002584939633 | K73: 0 | L73: 0 | M73: 0 | N73: 0 | O73: 0
D74: Incremental Costs: | E74: =IF(_t>_tF,0,IF(_CP,0,_dT/2*(E55*E14+E56*E29))) -> 0 | F74: 0 | G74: 0 | H74: 0 | I74: 0 | J74: 0 | K74: 0 | L74: 0 | M74: 0 | N74: 0 | O74: 0
D75: Incremental Total: | E75: =E74+E73 -> 0 | F75: 0 | G75: 0.0008997351124 | H75: 0.06097217795 | I75: 0 | J75: 0.0002584939633 | K75: 0 | L75: 0 | M75: 0 | N75: 0 | O75: 0
D76: Cum Discounted Costs: | E76: =IF(_R,E75,IF(_t>=_tF,E76,E76+E75*EXP(-_dR*_t))) -> 16.128 | F76: 0 | G76: 0.005515018284 | H76: 0.3769224981 | I76: 0 | J76: 0.0007861440041 | K76: 0 | L76: 0 | M76: 0 | N76: 0 | O76: 0
D77: Overall Cum Costs = | E77: =SUM(E76:O76) -> 16.51122366

Sheet Endarterectomy
R3: Popdie = | S3: 0.06 | T3: Probability of operative death
R4: Popstroke = | S4: 0.08 | T4: Probability of operative stroke
R5: Pearlystrk = | S5: 0.04 | T5: Short-term prob of stroke without surgery
R7: dSurg = | S7: 1 | T7: Decision to undergo surgery (1 or 0)
R8: tSurg = | S8: =1/12 -> 0.08333333333 | T8: Toll for surgery (yr)
R9: cSurg = | S9: 15 | T9: Cost of surgery (thousands)
R12: dSurg | S12: QALY | T12: Cost
R13: =dSurg -> 1 | S13: =_CumQ -> 0.4504657467 | T13: =_CumC -> 16.51122366
R14: 1 | S14: 8.931310175 | T14: 21.43162219
R15: 0 | S15: 9.582611211 | T15: 6.754158561

Sheet LT_Outome
D2: EFF = | E2: 0.5 | F2: Efficacy of surgery | M2: cBigStrk = | N2: 20 | O2: Cost of a big stroke (thousands)
D3: mstroke = | E3: 0.05 | F3: Rate of stroke (/yr) | M3: cSmallStrk = | N3: 5 | O3: Cost of a small stroke (thousands)
D4: Pearlydie = | E4: 0.38 | F4: Short-term death prob after big stroke | M4: qPBS = | N4: 0.2 | O4: Quality of life post big stroke (/yr)
D5: Pbig = | E5: =2/3 -> 0.6666666667 | F5: Prob of a big stroke | M5: qPSS = | N5: 0.8 | O5: Quality of life post small stroke (/yr)
D6: mexcess = | E6: 0.065 | F6: Excess mortality (/yr) | M6: tBig = | N6: =1/12 -> 0.08333333333 | O6: Toll for big stroke (yr)
D7: m0 = | E7: 0.01106 | F7: Baseline mortality (/yr) (not used - see Background)

Sheet Background
D2: Age = | E2: 45
D3: Gender = | E3: Male

Sheet Sheet1
